fUSD/lending_fUSD_20240220
["ID","MTS","AMOUNT","RATE_DAILY","PERIOD"]
[314542792,1708414236371,-500.0,0.00035616,2]
[314542793,1708414236380,-500.0,0.00035616,2]
[314542794,1708414236389,-500.0,0.00035616,2]
[314542795,1708414236399,-867.6,0.00035616,2]
[314542796,1708414236412,-1121.73,0.00035616,2]
[314542797,1708414236422,-500.0,0.00035616,2]
[314542798,1708414236432,-991.95,0.00035616,2]
[314542799,1708414236446,-852.32,0.00035616,2]
[314542800,1708414236456,-630.78,0.00035616,2]
[314542801,1708414236467,-502.53,0.00035616,2]
[314542802,1708414236478,-500.0,0.00035616,2]
[314542803,1708414236489,-500.0,0.00035616,2]
[314542804,1708414236500,-500.0,0.00035616,2]
[314542805,1708414236510,-500.0,0.00035616,2]
[314542806,1708414236521,-500.0,0.00035616,2]
[314542807,1708414236532,-500.0,0.00035616,2]
[314542808,1708414236542,-925.12,0.00035616,2]
[314542809,1708414236552,-943.13,0.00035616,2]
[314542810,1708414236563,-533.9,0.00035616,2]
[314542811,1708414236575,-500.0,0.00035616,2]
[314542812,1708414236585,-676.43,0.00035616,2]
[314542813,1708414236596,-500.0,0.00035616,2]
[314542814,1708414236606,-500.0,0.00035616,2]
[314542815,1708414236617,-947.56,0.00035616,2]
[314542816,1708414236627,-500.0,0.00035616,2]
[314542817,1708414236637,-500.0,0.00035616,2]
[314542818,1708414236647,-500.0,0.00035616,2]
[314542819,1708414236658,-1111.91,0.00035616,2]
[314542820,1708414236668,-500.0,0.00035616,2]
[314542821,1708414236680,-500.0,0.00035616,2]
[314542822,1708414236690,-500.0,0.00035616,2]
[314542823,1708414236700,-500.0,0.00035616,2]
[314542824,1708414236710,-5469.99,0.00035616,2]
[314542825,1708414236721,-1798.98,0.00035616,2]
[314542826,1708414236731,-2147.88,0.00035616,2]
[314542827,1708414236741,-500.0,0.00035616,2]
[314542828,1708414236751,-500.0,0.00035616,2]
[314542829,1708414236762,-695.38,0.00035616,2]
[314542830,1708414236772,-500.0,0.00035616,2]
[314542831,1708414236783,-623.89,0.00035616,2]
[314542832,1708414236794,-500.0,0.00035616,2]
[314542833,1708414236804,-734.64,0.00035616,2]
[314542834,1708414236815,-500.0,0.00035616,2]
[314542835,1708414236826,-538.14,0.00035616,2]
[314542836,1708414236836,-500.0,0.00035616,2]
[314542837,1708414236847,-561.68,0.00035616,2]
[314542838,1708414236858,-634.06,0.00035616,2]
[314542839,1708414236868,-500.0,0.00035616,2]
[314542840,1708414236879,-500.0,0.00035616,2]
[314542841,1708414236889,-500.0,0.00035616,2]
[314542842,1708414236899,-2824.81,0.00035616,2]
[314542843,1708414236910,-1005.04,0.00035616,2]
[314542844,1708414236920,-500.0,0.00035616,2]
[314542845,1708414236930,-500.0,0.00035616,2]
[314542846,1708414236940,-1772.53,0.00035616,2]
[314542847,1708414236951,-500.0,0.00035616,2]
[314542848,1708414236961,-634.55,0.00035616,2]
[314542849,1708414236971,-500.0,0.00035616,2]
[314542850,1708414236983,-554.38,0.00035616,2]
[314542851,1708414236994,-500.0,0.00035616,2]
[314542852,1708414237004,-4474.25,0.00035616,2]
[314542853,1708414237015,-500.0,0.00035616,2]
[314542854,1708414237026,-621.98,0.00035616,2]
[314542855,1708414237037,-500.0,0.00035616,2]
[314542856,1708414237047,-831.9,0.00035616,2]
[314542857,1708414237058,-536.72,0.00035616,2]
[314542858,1708414237069,-500.0,0.00035616,2]
[314542859,1708414237081,-500.0,0.00035616,2]
[314542860,1708414237092,-526.08046614,0.00035616,2]
[314542861,1708414237109,-500.0,0.00035616,2]
[314542862,1708414237120,-500.0,0.00035616,2]
[314542863,1708414237131,-1946.15,0.00035616,2]
[314542864,1708414237142,-500.0,0.00035616,2]
[314542865,1708414237152,-500.0,0.00035616,2]
[314542866,1708414237162,-1272.36,0.00035616,2]
[314542867,1708414237173,-2232.84,0.00035616,2]
[314542868,1708414237184,-500.0,0.00035616,2]
[314542869,1708414237195,-500.0,0.00035616,2]
[314542870,1708414237206,-2036.23,0.00035616,2]
[314542871,1708414237216,-627.84,0.00035616,2]
[314542872,1708414237227,-709.64,0.00035616,2]
[314542874,1708414237241,-500.0,0.00035616,2]
[314542875,1708414237252,-500.0,0.00035616,2]
[314542876,1708414237262,-697.32,0.00035616,2]
[314542877,1708414237272,-500.0,0.00035616,2]
[314542878,1708414237282,-500.0,0.00035616,2]
[314542879,1708414237291,-725.4,0.00035616,2]
[314542880,1708414237301,-500.0,0.00035616,2]
[314542882,1708414237311,-500.0,0.00035616,2]
[314542884,1708414237321,-500.0,0.00035616,2]
[314542887,1708414237332,-500.0,0.00035616,2]
[314542889,1708414237342,-543.39,0.00035616,2]
[314542891,1708414237353,-585.21,0.00035616,2]
[314542894,1708414237364,-500.0,0.00035616,2]
[314542896,1708414237374,-1989.5,0.00035616,2]
[314542898,1708414237384,-1171.13,0.00035616,2]
[314542900,1708414237394,-500.0,0.00035616,2]
[314542902,1708414237404,-500.0,0.00035616,2]
[314542904,1708414237415,-633.14,0.00035616,2]
[314542905,1708414237426,-500.0,0.00035616,2]
[314542906,1708414237437,-891.99,0.00035616,2]
[314542907,1708414237450,-500.0,0.00035616,2]
[314542908,1708414237460,-3307.0,0.00035616,2]
[314542909,1708414237470,-1042.34,0.00035616,2]
[314542910,1708414237482,-749.4,0.00035616,2]
[314542911,1708414237493,-510.99631485,0.00035616,2]
[314542912,1708414237503,-500.0,0.00035616,2]
[314542913,1708414237513,-500.0,0.00035616,2]
[314542914,1708414237524,-500.0,0.00035616,2]
[314542915,1708414237535,-500.0,0.00035616,2]
[314542916,1708414237545,-3720.96,0.00035616,2]
[314542917,1708414237555,-500.0,0.00035616,2]
[314542918,1708414237566,-414.34978486,0.00035616,2]
[314542919,1708414237576,-1325.65,0.00035616,2]
[314542920,1708414237586,-734.53,0.00035616,2]
[314542921,1708414237596,-958.69,0.00035616,2]
[314542922,1708414237606,-500.0,0.00035616,2]
[314542923,1708414237616,-694.3,0.00035616,2]
[314542924,1708414237626,-500.0,0.00035616,2]
[314542925,1708414237637,-529.25,0.00035616,2]
[314542926,1708414237677,-627.84378906,0.00035616,2]
[314542927,1708414237688,-500.0,0.00035616,2]
[314542928,1708414237699,-522.31074557,0.00035616,2]
[314542929,1708414237709,-983.79,0.00035616,2]
[314542930,1708414237719,-500.0,0.00035616,2]
[314542931,1708414237732,-500.0,0.00035616,2]
[314542932,1708414237742,-650.18,0.00035616,2]
[314542933,1708414237753,-1212.64,0.00035616,2]
[314542934,1708414237763,-500.0,0.00035616,2]
[314542935,1708414237773,-661.34,0.00035616,2]
[314542936,1708414237783,-500.0,0.00035616,2]
[314542937,1708414237794,-705.29,0.00035616,2]
[314542938,1708414237806,-1024.07,0.00035616,2]
[314542939,1708414237816,-500.0,0.00035616,2]
[314542940,1708414237826,-500.0,0.00035616,2]
[314542941,1708414237836,-666.3,0.00035616,2]
[314542942,1708414237846,-500.0,0.00035616,2]
[314542944,1708414237856,-586.04,0.00035616,2]
[314542946,1708414237866,-770.51,0.00035616,2]
[314542947,1708414237877,-500.0,0.00035616,2]
[314542948,1708414237886,-500.0,0.00035616,2]
[314542949,1708414237896,-500.0,0.00035616,2]
[314542950,1708414237906,-500.0,0.00035616,2]
[314542951,1708414237916,-500.0,0.00035616,2]
[314542952,1708414237926,-474.44425515,0.00035616,2]
[314542953,1708414237936,-5521.52,0.00035616,2]
[314542954,1708414237946,-509.79,0.00035616,2]
[314542955,1708414237956,-800.82,0.00035616,2]
[314542956,1708414237966,-500.0,0.00035616,2]
[314542957,1708414237977,-500.0,0.00035616,2]
[314542958,1708414237988,-500.0,0.00035616,2]
[314542959,1708414237999,-1524.0,0.00035616,2]
[314542960,1708414238009,-500.0,0.00035616,2]
[314542961,1708414238019,-500.0,0.00035616,2]
[314542962,1708414238029,-893.72,0.00035616,2]
[314542963,1708414238040,-500.0,0.00035616,2]
[314542964,1708414238050,-1929.44,0.00035616,2]
[314542965,1708414238062,-500.0,0.00035616,2]
[314542966,1708414238072,-500.0,0.00035616,2]
[314542967,1708414238083,-500.0,0.00035616,2]
[314542968,1708414238093,-500.0,0.00035616,2]
[314542969,1708414238103,-1089.9,0.00035616,2]
[314542970,1708414238112,-500.0,0.00035616,2]
[314542971,1708414238123,-1120.0,0.00035616,2]
[314542972,1708414238132,-500.0,0.00035616,2]
[314542973,1708414238142,-1070.01,0.00035616,2]
[314542974,1708414238152,-500.0,0.00035616,2]
[314542975,1708414238163,-673.98,0.00035616,2]
[314542976,1708414238172,-500.0,0.00035616,2]
[314542977,1708414238182,-500.0,0.00035616,2]
[314542978,1708414238192,-500.0,0.00035616,2]
[314542979,1708414238202,-642.91,0.00035616,2]
[314542980,1708414238213,-500.0,0.00035616,2]
[314542981,1708414238223,-883.65,0.00035616,2]
[314542982,1708414238233,-500.0,0.00035616,2]
[314542983,1708414238243,-500.0,0.00035616,2]
[314542984,1708414238254,-500.0,0.00035616,2]
[314542985,1708414238264,-603.44,0.00035616,2]
[314542986,1708414238274,-500.0,0.00035616,2]
[314542987,1708414238284,-500.0,0.00035616,2]
[314542988,1708414238294,-500.0,0.00035616,2]
[314542989,1708414238304,-500.0,0.00035616,2]
[314542990,1708414238314,-500.0,0.00035616,2]
[314542991,1708414238324,-500.0,0.00035616,2]
[314542992,1708414238334,-500.0,0.00035616,2]
[314542993,1708414238344,-512.74,0.00035616,2]
[314542994,1708414238354,-500.0,0.00035616,2]
[314542995,1708414238365,-632.37,0.00035616,2]
[314542996,1708414238375,-500.0,0.00035616,2]
[314542997,1708414238385,-500.0,0.00035616,2]
[314542998,1708414238395,-1662.68,0.00035616,2]
[314542999,1708414238405,-1216.0,0.00035616,2]
[314543000,1708414238415,-2122.45,0.00035616,2]
[314543001,1708414238425,-500.0,0.00035616,2]
[314543002,1708414238437,-150.0,0.0003565,2]
[314543003,1708414238447,-33192.2332,0.00035687,2]
[314543004,1708414238457,-150.0,0.00035693,2]
[314543005,1708414238468,-537.08175214,0.00035698,2]
[314543006,1708414238479,-150.0,0.00035699,2]
[314543007,1708414238488,-5929.9481023,0.000357,2]
[314543008,1708414238498,-2927.22237382,0.000357,8]
[314543009,1708414238508,-174.1653614,0.000357,2]
[314543010,1708414238519,-152.33368307,0.000357,2]
[314543011,1708414238530,-154.41764704,0.000357,2]
[314543012,1708414238539,-193.0239431,0.000357,2]
[314543013,1708414238550,-767.15971878,0.000357,2]
[314543014,1708414238560,-220.08355226,0.000357,2]
[314543015,1708414238570,-208.81089753,0.000357,7]
[314543016,1708414238580,-486.38163566,0.000357,2]
[314543017,1708414238590,-834.27054382,0.000357,2]
[314543018,1708414238600,-2039.90088484,0.000357,2]
[314543019,1708414238609,-157.0212031,0.00035748,2]
[314543020,1708414238620,-150.0,0.00035765,2]
[314543021,1708414238630,-889.42,0.00035771,2]
[314543022,1708414238640,-1048.05810516,0.00035785,2]
[314543023,1708414238650,-155.0,0.00035785,4]
[314543024,1708414238660,-2000.0,0.00035787,2]
[314543025,1708414238671,-200.0,0.00035787,2]
[314543026,1708414238681,-200.0,0.00035787,2]
[314543027,1708414238691,-2000.0,0.00035787,2]
[314543028,1708414238702,-200.0,0.00035787,2]
[314543029,1708414238712,-2000.0,0.00035787,2]
[314543030,1708414238723,-200.0,0.00035787,2]
[314543031,1708414239012,-544.86400436,0.0003579,2]
[314543032,1708414239027,-71520.84618166,0.0003579,10]
[314543033,1708414239037,-940.76,0.00035798,2]
[314543034,1708414239046,-469.79210412,0.000358,3]
[314543035,1708414239056,-292579.11488229,0.000358,2]
[314543041,1708414241023,-278.06970482,0.00035606,2]
[314543042,1708414241032,-500.0,0.00035616,2]
[314543043,1708414241041,-771840.31805514,0.000358,4]
[314543044,1708414241051,-2120198.66447265,0.000358,2]
[314543045,1708414241060,-169.49677885,0.000358,2]
[314543046,1708414241117,-156.20529617,0.000358,2]
[314543047,1708414241126,-13937.15396061,0.000358,2]
[314543048,1708414241135,-2927.22237371,0.00035807,8]
[314543049,1708414241144,-1500.0,0.0003588,2]
[314543050,1708414241153,-500.0,0.0003589,2]
[314543051,1708414241163,-500.0,0.0003589,2]
[314543052,1708414241172,-500.0,0.0003589,2]
[314543053,1708414241182,-500.0,0.0003589,2]
[314543054,1708414241191,-500.0,0.0003589,2]
[314543055,1708414241200,-500.0,0.0003589,2]
[314543056,1708414241210,-500.0,0.0003589,2]
[314543057,1708414241219,-500.0,0.0003589,2]
[314543058,1708414241228,-500.0,0.0003589,2]
[314543059,1708414241238,-454.45688854,0.0003589,2]
[314543060,1708414241247,-500.0,0.0003589,2]
[314543061,1708414241256,-500.0,0.0003589,2]
[314543062,1708414241265,-243.56,0.0003589,2]
[314543063,1708414241275,-500.0,0.0003589,2]
[314543064,1708414241284,-500.0,0.0003589,2]
[314543065,1708414241293,-500.0,0.0003589,2]
[314543066,1708414241303,-500.0,0.0003589,2]
[314543067,1708414241312,-500.0,0.0003589,2]
[314543068,1708414241321,-500.0,0.0003589,2]
[314543069,1708414241330,-254.32467687,0.0003589,2]
[314543070,1708414241339,-500.0,0.0003589,2]
[314543071,1708414241349,-500.0,0.0003589,2]
[314543072,1708414241358,-582.85475022,0.0003589,2]
[314543073,1708414241367,-500.0,0.0003589,2]
[314543074,1708414241376,-500.0,0.0003589,2]
[314543075,1708414241385,-500.0,0.0003589,2]
[314543076,1708414241394,-500.0,0.0003589,2]
[314543077,1708414241403,-500.0,0.0003589,2]
[314543078,1708414241412,-500.0,0.0003589,2]
[314543079,1708414241421,-500.0,0.0003589,2]
[314543080,1708414241430,-500.0,0.0003589,2]
[314543081,1708414241440,-500.0,0.0003589,2]
[314543082,1708414241450,-500.0,0.0003589,2]
[314543083,1708414241460,-500.0,0.0003589,2]
[314543084,1708414241469,-500.0,0.0003589,2]
[314543085,1708414241478,-500.0,0.0003589,2]
[314543086,1708414241490,-500.0,0.0003589,2]
[314543087,1708414241500,-500.0,0.0003589,2]
[314543088,1708414241510,-201.79612828,0.0003589,2]
[314543089,1708414241523,-500.0,0.0003589,2]
[314543090,1708414241533,-500.0,0.0003589,2]
[314543091,1708414241542,-500.0,0.0003589,2]
[314543092,1708414241551,-500.0,0.0003589,2]
[314543093,1708414241561,-500.0,0.0003589,2]
[314543094,1708414241570,-500.0,0.0003589,2]
[314543095,1708414241579,-500.0,0.0003589,2]
[314543096,1708414241588,-500.0,0.0003589,2]
[314543097,1708414241597,-500.0,0.0003589,2]
[314543098,1708414241607,-500.0,0.0003589,2]
[314543099,1708414241616,-898.59,0.0003589,2]
[314543100,1708414241625,-500.0,0.0003589,2]
[314543101,1708414241634,-500.0,0.0003589,2]
[314543102,1708414241643,-356.34647088,0.0003589,2]
[314543103,1708414241652,-500.0,0.0003589,2]
[314543104,1708414241661,-500.0,0.0003589,2]
[314543105,1708414241671,-500.0,0.0003589,2]
[314543106,1708414241681,-500.0,0.0003589,2]
[314543107,1708414241691,-500.0,0.0003589,2]
[314543108,1708414241701,-500.0,0.0003589,2]
[314543109,1708414241711,-500.0,0.0003589,2]
[314543110,1708414241720,-500.0,0.0003589,2]
[314543111,1708414241729,-500.0,0.0003589,2]
[314543112,1708414241739,-500.0,0.0003589,2]
[314543113,1708414241748,-500.0,0.0003589,2]
[314543114,1708414241756,-500.0,0.0003589,2]
[314543115,1708414241765,-500.0,0.0003589,2]
[314543116,1708414241775,-500.0,0.0003589,2]
[314543117,1708414241785,-619.30383394,0.0003589,2]
[314543118,1708414241794,-570.75941064,0.0003589,2]
[314543119,1708414241803,-500.0,0.0003589,2]
[314543120,1708414241814,-500.0,0.0003589,2]
[314543121,1708414241825,-500.0,0.0003589,2]
[314543122,1708414241835,-500.0,0.0003589,2]
[314543123,1708414241845,-500.0,0.0003589,2]
[314543124,1708414241854,-500.0,0.0003589,2]
[314543125,1708414241863,-500.0,0.0003589,2]
[314543126,1708414241872,-500.0,0.0003589,2]
[314543127,1708414241881,-500.0,0.0003589,2]
[314543128,1708414241890,-221.94724756,0.0003589,2]
[314543129,1708414241899,-500.0,0.0003589,2]
[314543130,1708414241908,-500.0,0.0003589,2]
[314543131,1708414241917,-500.0,0.0003589,2]
[314543132,1708414241927,-500.0,0.0003589,2]
[314543133,1708414241937,-500.0,0.0003589,2]
[314543134,1708414241946,-500.0,0.0003589,2]
[314543135,1708414241955,-500.0,0.0003589,2]
[314543136,1708414241964,-500.0,0.0003589,2]
[314543137,1708414241973,-500.0,0.0003589,2]
[314543138,1708414241982,-500.0,0.0003589,2]
[314543139,1708414241992,-500.0,0.0003589,2]
[314543140,1708414242001,-500.0,0.0003589,2]
[314543141,1708414242010,-500.0,0.0003589,2]
[314543142,1708414242020,-500.0,0.0003589,2]
[314543143,1708414242029,-500.0,0.0003589,2]
[314543144,1708414242039,-500.0,0.0003589,2]
[314543145,1708414242048,-500.0,0.0003589,2]
[314543146,1708414242056,-500.0,0.0003589,2]
[314543147,1708414242067,-500.13063612,0.0003589,2]
[314543148,1708414242076,-500.0,0.0003589,2]
[314543149,1708414242085,-500.0,0.0003589,2]
[314543150,1708414242094,-500.0,0.0003589,2]
[314543151,1708414242104,-500.0,0.0003589,2]
[314543152,1708414242113,-500.0,0.0003589,2]
[314543153,1708414242122,-500.0,0.0003589,2]
[314543154,1708414242132,-500.0,0.0003589,2]
[314543156,1708414242141,-500.0,0.0003589,2]
[314543157,1708414242151,-500.0,0.0003589,2]
[314543158,1708414242160,-500.0,0.0003589,2]
[314543159,1708414242169,-500.0,0.0003589,2]
[314543160,1708414242178,-500.0,0.0003589,2]
[314543161,1708414242186,-311.93399767,0.0003589,2]
[314543162,1708414242195,-500.0,0.0003589,2]
[314543163,1708414242205,-500.0,0.0003589,2]
[314543164,1708414242214,-500.0,0.0003589,2]
[314543165,1708414242223,-500.0,0.0003589,2]
[314543166,1708414242232,-500.0,0.0003589,2]
[314543167,1708414242242,-500.0,0.0003589,2]
[314543168,1708414242251,-500.0,0.0003589,2]
[314543169,1708414242260,-500.0,0.0003589,2]
[314543170,1708414242269,-500.0,0.0003589,2]
[314543171,1708414242278,-500.0,0.0003589,2]
[314543172,1708414242288,-500.0,0.0003589,2]
[314543173,1708414242297,-500.0,0.0003589,2]
[314543174,1708414242307,-500.0,0.0003589,2]
[314543175,1708414242317,-500.0,0.0003589,2]
[314543176,1708414242326,-500.0,0.0003589,2]
[314543177,1708414242335,-500.0,0.0003589,2]
[314543178,1708414242345,-500.0,0.0003589,2]
[314543179,1708414242355,-500.0,0.0003589,2]
[314543180,1708414242364,-500.0,0.0003589,2]
[314543181,1708414242374,-500.0,0.0003589,2]
[314543182,1708414242383,-500.0,0.0003589,2]
[314543183,1708414242392,-500.0,0.0003589,2]
[314543184,1708414242401,-500.0,0.0003589,2]
[314543185,1708414242411,-500.0,0.0003589,2]
[314543186,1708414242420,-500.0,0.0003589,2]
[314543187,1708414242432,-500.0,0.0003589,2]
[314543188,1708414242442,-500.0,0.0003589,2]
[314543189,1708414242451,-500.0,0.0003589,2]
[314543190,1708414242461,-150.0,0.0003589,2]
[314543191,1708414242471,-500.0,0.0003589,2]
[314543192,1708414242481,-500.0,0.0003589,2]
[314543193,1708414242492,-500.0,0.0003589,2]
[314543194,1708414242501,-500.0,0.0003589,2]
[314543195,1708414242510,-500.0,0.0003589,2]
[314543196,1708414242522,-557.99443959,0.0003589,2]
[314543197,1708414242531,-271.20425506,0.0003589,2]
[314543198,1708414242541,-500.0,0.0003589,2]
[314543199,1708414242550,-500.0,0.0003589,2]
[314543200,1708414242560,-500.0,0.0003589,2]
[314543201,1708414242569,-367.61933988,0.0003589,2]
[314543202,1708414242579,-500.0,0.0003589,2]
[314543203,1708414242588,-225.56633708,0.0003589,2]
[314543204,1708414242598,-504.96,0.0003589,2]
[314543205,1708414242607,-500.0,0.0003589,2]
[314543206,1708414242617,-500.0,0.0003589,2]
[314543207,1708414242627,-500.0,0.0003589,2]
[314543208,1708414242636,-500.0,0.0003589,2]
[314543209,1708414242645,-500.0,0.0003589,2]
[314543210,1708414242655,-500.0,0.0003589,2]
[314543211,1708414242665,-500.0,0.0003589,2]
[314543212,1708414242675,-500.0,0.0003589,2]
[314543213,1708414242684,-500.0,0.0003589,2]
[314543214,1708414242694,-500.0,0.0003589,2]
[314543215,1708414242703,-500.0,0.0003589,2]
[314543216,1708414242712,-500.0,0.0003589,2]
[314543217,1708414242723,-500.0,0.0003589,2]
[314543218,1708414242732,-500.0,0.0003589,2]
[314543219,1708414242743,-500.0,0.0003589,2]
[314543220,1708414242753,-500.0,0.0003589,2]
[314543221,1708414242762,-500.0,0.0003589,2]
[314543222,1708414242771,-500.0,0.0003589,2]
[314543223,1708414242781,-500.0,0.0003589,2]
[314543224,1708414242790,-500.0,0.0003589,2]
[314543225,1708414242799,-500.0,0.0003589,2]
[314543226,1708414242808,-500.0,0.0003589,2]
[314543227,1708414242817,-500.0,0.0003589,2]
[314543228,1708414242827,-500.0,0.0003589,2]
[314543229,1708414242836,-500.0,0.0003589,2]
[314543230,1708414242846,-500.0,0.0003589,2]
[314543231,1708414242855,-317.23155488,0.0003589,2]
[314543232,1708414242865,-500.0,0.0003589,2]
[314543233,1708414242874,-500.0,0.0003589,2]
[314543234,1708414242883,-500.0,0.0003589,2]
[314543235,1708414242892,-500.0,0.0003589,2]
[314543237,1708414242902,-535.02,0.0003589,2]
[314543238,1708414242911,-624.18360946,0.0003589,2]
[314543239,1708414242920,-500.0,0.0003589,2]
[314543240,1708414242930,-500.0,0.0003589,2]
[314543241,1708414242939,-500.0,0.0003589,2]
[314543242,1708414242949,-500.0,0.0003589,2]
[314543243,1708414242958,-500.0,0.0003589,2]
[314543244,1708414242967,-500.0,0.0003589,2]
[314543245,1708414242978,-500.0,0.0003589,2]
[314543246,1708414242988,-500.0,0.0003589,2]
[314543247,1708414242997,-500.0,0.0003589,2]
[314543248,1708414243006,-500.0,0.0003589,2]
[314543249,1708414243015,-500.0,0.0003589,2]
[314543250,1708414243025,-500.0,0.0003589,2]
[314543251,1708414243034,-500.0,0.0003589,2]
[314543252,1708414243043,-500.0,0.0003589,2]
[314543253,1708414243052,-500.0,0.0003589,2]
[314543254,1708414243061,-500.82630834,0.0003589,2]
[314543255,1708414243071,-500.0,0.0003589,2]
[314543256,1708414243080,-500.0,0.0003589,2]
[314543257,1708414243089,-500.0,0.0003589,2]
[314543258,1708414243098,-861.99,0.0003589,2]
[314543259,1708414243107,-1993.68,0.0003589,2]
[314543260,1708414243116,-500.0,0.0003589,2]
[314543261,1708414243126,-500.0,0.0003589,2]
[314543262,1708414243135,-500.0,0.0003589,2]
[314543263,1708414243144,-500.0,0.0003589,2]
[314543264,1708414243153,-500.0,0.0003589,2]
[314543265,1708414243162,-500.0,0.0003589,2]
[314543266,1708414243171,-500.0,0.0003589,2]
[314543267,1708414243180,-574.69396315,0.0003589,2]
[314543268,1708414243190,-763.94,0.0003589,2]
[314543269,1708414243199,-500.0,0.0003589,2]
[314543270,1708414243208,-545.95,0.0003589,2]
[314543271,1708414243217,-987.27,0.0003589,2]
[314543272,1708414243228,-783.55,0.0003589,2]
[314543273,1708414243238,-776.81,0.0003589,2]
[314543274,1708414243247,-500.0,0.0003589,2]
[314543275,1708414243256,-500.0,0.0003589,2]
[314543276,1708414243265,-500.0,0.0003589,2]
[314543277,1708414243275,-500.0,0.0003589,2]
[314543278,1708414243284,-500.0,0.0003589,2]
[314543279,1708414243292,-874.57,0.0003589,2]
[314543280,1708414243302,-1054.77,0.0003589,2]
[314543281,1708414243311,-500.0,0.0003589,2]
[314543282,1708414243320,-500.0,0.0003589,2]
[314543283,1708414243330,-624.15,0.0003589,2]
[314543284,1708414243339,-500.0,0.0003589,2]
[314543285,1708414243348,-535.26,0.0003589,2]
[314543286,1708414243358,-500.0,0.0003589,2]
[314543287,1708414243367,-650.78,0.0003589,2]
[314543288,1708414243376,-500.0,0.0003589,2]
[314543289,1708414243385,-568.24,0.0003589,2]
[314543290,1708414243394,-500.0,0.0003589,2]
[314543291,1708414243403,-709.19,0.0003589,2]
[314543292,1708414243413,-2156.42,0.0003589,2]
[314543293,1708414243422,-500.0,0.0003589,2]
[314543294,1708414243432,-500.0,0.0003589,2]
[314543295,1708414243443,-2247.45,0.0003589,2]
[314543296,1708414243452,-1476.72,0.0003589,2]
[314543297,1708414243461,-500.0,0.0003589,2]
[314543298,1708414243469,-500.0,0.0003589,2]
[314543299,1708414243479,-766.73,0.0003589,2]
[314543300,1708414243488,-500.0,0.0003589,2]
[314543301,1708414243497,-1458.2,0.0003589,2]
[314543302,1708414243504,-500.0,0.0003589,2]
[314543303,1708414243512,-2849.4,0.0003589,2]
[314543304,1708414243523,-1103.44,0.0003589,2]
[314543305,1708414243532,-1265.79,0.0003589,2]
[314543306,1708414243542,-853.65,0.0003589,2]
[314543307,1708414243551,-593.25,0.0003589,2]
[314543308,1708414243560,-13765.84,0.0003589,2]
[314543309,1708414243570,-500.0,0.0003589,2]
[314543310,1708414243579,-500.0,0.0003589,2]
[314543311,1708414243588,-500.0,0.0003589,2]
[314543312,1708414243597,-1121.73,0.0003589,2]
[314543313,1708414243607,-867.6,0.0003589,2]
[314543314,1708414243616,-500.0,0.0003589,2]